[Event "Late-Titled-Tuesday-Blitz-July-09-2024"]
[Site "Chess.com"]
[Date "2024.07.09"]
[Round "3"]
[White "CoachKevinVelazquez"]
[Black "CapivaraBondoso"]
[Result "1-0"]
[WhiteElo "2341"]
[BlackElo "1921"]
[TimeControl "180+1"]
[EndTime "14:26:49 PDT"]
[Termination "CoachKevinVelazquez won by resignation"]

1. d4 {[%clk 0:03:00.9]} 1... Nf6 {[%clk 0:02:59.4]} 2. Bf4 {[%clk 0:03:00.9]}
2... g6 {[%clk 0:02:59.8]} 3. e3 {[%clk 0:03:01.5]} 3... Bg7 {[%clk 0:03:00.7]}
4. Nf3 {[%clk 0:03:02]} 4... O-O {[%clk 0:03:01.6]} 5. Bd3 {[%clk 0:03:02.2]}
5... d6 {[%clk 0:03:00.8]} 6. Nbd2 {[%clk 0:03:01.6]} 6... Nbd7 {[%clk
0:03:01.4]} 7. h4 {[%clk 0:03:00.8]} 7... h5 {[%clk 0:03:00.2]} 8. Bc4 {[%clk
0:02:59.2]} 8... d5 {[%clk 0:02:55]} 9. Bd3 {[%clk 0:02:58.7]} 9... c5 {[%clk
0:02:54.3]} 10. c3 {[%clk 0:02:58.7]} 10... b6 {[%clk 0:02:53.5]} 11. Qe2 {[%clk
0:02:55.7]} 11... Bb7 {[%clk 0:02:53.1]} 12. O-O-O {[%clk 0:02:55.5]} 12... a6
{[%clk 0:02:45.7]} 13. Kb1 {[%clk 0:02:55.5]} 13... b5 {[%clk 0:02:45.3]} 14.
Ne5 {[%clk 0:02:55.4]} 14... c4 {[%clk 0:02:34.2]} 15. Bc2 {[%clk 0:02:54.9]}
15... a5 {[%clk 0:02:32.9]} 16. f3 {[%clk 0:02:34.4]} 16... b4 {[%clk
0:02:32.6]} 17. g4 {[%clk 0:02:34.2]} 17... bxc3 {[%clk 0:02:17.1]} 18. bxc3
{[%clk 0:02:35.1]} 18... a4 {[%clk 0:02:15.3]} 19. a3 {[%clk 0:02:17]} 19... Bc8
{[%clk 0:01:55.7]} 20. Ka2 {[%clk 0:02:16.1]} 20... Qa5 {[%clk 0:01:50.9]} 21.
Nb1 {[%clk 0:02:11.1]} 21... Ra6 {[%clk 0:01:37.6]} 22. Nxd7 {[%clk 0:02:10.8]}
22... Bxd7 {[%clk 0:01:36.8]} 23. Be5 {[%clk 0:02:11.4]} 23... hxg4 {[%clk
0:01:18.4]} 24. Bxf6 {[%clk 0:02:07.9]} 24... gxf3 {[%clk 0:01:06.1]} 25. Qxf3
{[%clk 0:02:08.6]} 25... Bxf6 {[%clk 0:00:57.9]} 26. h5 {[%clk 0:01:47.4]} 26...
Kg7 {[%clk 0:00:53]} 27. hxg6 {[%clk 0:01:45.1]} 27... fxg6 {[%clk 0:00:50.8]}
28. Rdg1 {[%clk 0:01:38.6]} 28... Be8 {[%clk 0:00:46.9]} 29. Qf5 {[%clk
0:01:33.2]} 29... Bxd4 {[%clk 0:00:23.3]} 30. Rh7+ {[%clk 0:01:33.2]} 30... Kxh7
{[%clk 0:00:21.7]} 31. Qxf8 {[%clk 0:01:33.7]} 31... Bg7 {[%clk 0:00:02.6]} 32.
Rh1+ {[%clk 0:01:31.9]} 1-0

[Event "Late-Titled-Tuesday-Blitz-July-09-2024"]
[Site "Chess.com"]
[Date "2024.07.09"]
[Round "3"]
[White "ninjatrick"]
[Black "Igor_Janik"]
[Result "0-1"]
[WhiteElo "2495"]
[BlackElo "2884"]
[TimeControl "180+1"]
[EndTime "14:27:00 PDT"]
[Termination "Igor_Janik won by resignation"]

1. d4 {[%clk 0:03:00]} 1... d6 {[%clk 0:02:59.7]} 2. Nf3 {[%clk 0:02:59.9]} 2...
g6 {[%clk 0:02:59.9]} 3. c4 {[%clk 0:02:59.3]} 3... Bg7 {[%clk 0:02:59.8]} 4.
Nc3 {[%clk 0:02:59.8]} 4... Bg4 {[%clk 0:02:56]} 5. e3 {[%clk 0:02:52.6]} 5...
c5 {[%clk 0:02:56.3]} 6. Be2 {[%clk 0:02:52.4]} 6... cxd4 {[%clk 0:02:54.1]} 7.
exd4 {[%clk 0:02:53.3]} 7... Nc6 {[%clk 0:02:53.4]} 8. Be3 {[%clk 0:02:52]} 8...
Nh6 {[%clk 0:02:53.3]} 9. h3 {[%clk 0:02:46.6]} 9... Bxf3 {[%clk 0:02:52.7]} 10.
Bxf3 {[%clk 0:02:47.2]} 10... Nf5 {[%clk 0:02:53]} 11. Bxc6+ {[%clk 0:02:33.4]}
11... bxc6 {[%clk 0:02:51.9]} 12. O-O {[%clk 0:02:33.1]} 12... O-O {[%clk
0:02:51.6]} 13. Qd2 {[%clk 0:02:32.6]} 13... Rb8 {[%clk 0:02:48.8]} 14. Rad1
{[%clk 0:02:25.5]} 14... d5 {[%clk 0:02:45.6]} 15. cxd5 {[%clk 0:02:18.1]} 15...
cxd5 {[%clk 0:02:46.5]} 16. Na4 {[%clk 0:02:17.2]} 16... e6 {[%clk 0:02:45.6]}
17. b3 {[%clk 0:02:10.8]} 17... Rc8 {[%clk 0:02:40.9]} 18. Nc5 {[%clk
0:02:05.9]} 18... Qh4 {[%clk 0:02:40.5]} 19. Qb4 {[%clk 0:01:24.1]} 19... Rfe8
{[%clk 0:02:26.2]} 20. Qa4 {[%clk 0:01:03.1]} 20... Bf8 {[%clk 0:02:18.2]} 21.
Nd7 {[%clk 0:01:02.1]} 21... Bd6 {[%clk 0:02:10.7]} 22. Rc1 {[%clk 0:00:48.4]}
22... Kg7 {[%clk 0:02:08.8]} 23. Nc5 {[%clk 0:00:40.9]} 23... Nxe3 {[%clk
0:02:05.3]} 24. fxe3 {[%clk 0:00:41.2]} 24... Qg3 {[%clk 0:02:05.9]} 25. Qd7
{[%clk 0:00:34.5]} 25... Qh2+ {[%clk 0:01:52.3]} 26. Kf2 {[%clk 0:00:34.4]}
26... Rcd8 {[%clk 0:01:30]} 27. Qb7 {[%clk 0:00:16.9]} 27... Qg3+ {[%clk
0:01:27.3]} 28. Ke2 {[%clk 0:00:14.7]} 28... Re7 {[%clk 0:01:24.1]} 29. Nxe6+
{[%clk 0:00:14.3]} 29... fxe6 {[%clk 0:01:22.5]} 0-1

[Event "Late-Titled-Tuesday-Blitz-July-09-2024"]
[Site "Chess.com"]
[Date "2024.07.09"]
[Round "3"]
[White "vi_pranav"]
[Black "zsoltkorpics"]
[Result "1-0"]
[WhiteElo "2986"]
[BlackElo "2509"]
[TimeControl "180+1"]
[EndTime "14:27:02 PDT"]
[Termination "vi_pranav won by resignation"]

1. e4 {[%clk 0:02:56.2]} 1... c5 {[%clk 0:02:59.6]} 2. Nf3 {[%clk 0:02:53.7]}
2... e6 {[%clk 0:02:59.9]} 3. d4 {[%clk 0:02:53]} 3... cxd4 {[%clk 0:03:00.3]}
4. Nxd4 {[%clk 0:02:53.9]} 4... Nc6 {[%clk 0:03:00.7]} 5. Nc3 {[%clk 0:02:53.4]}
5... Qc7 {[%clk 0:03:00.8]} 6. g3 {[%clk 0:02:50.2]} 6... a6 {[%clk 0:03:00.7]}
7. Bg2 {[%clk 0:02:50.3]} 7... Nf6 {[%clk 0:03:01]} 8. O-O {[%clk 0:02:50.9]}
8... Nxd4 {[%clk 0:03:01.3]} 9. Qxd4 {[%clk 0:02:51.8]} 9... Bc5 {[%clk
0:03:01.6]} 10. Bf4 {[%clk 0:02:52.5]} 10... d6 {[%clk 0:03:01.9]} 11. Qd3
{[%clk 0:02:52.7]} 11... Ng4 {[%clk 0:03:02]} 12. h3 {[%clk 0:02:49.7]} 12...
Ne5 {[%clk 0:03:02]} 13. Qe2 {[%clk 0:02:50.3]} 13... b5 {[%clk 0:03:00.2]} 14.
a3 {[%clk 0:02:47]} 14... Bb7 {[%clk 0:02:59.1]} 15. Rad1 {[%clk 0:02:41.1]}
15... Nc4 {[%clk 0:02:49]} 16. Bc1 {[%clk 0:02:40.1]} 16... h5 {[%clk
0:02:36.8]} 17. h4 {[%clk 0:02:33.7]} 17... Ne5 {[%clk 0:02:32.6]} 18. Bf4
{[%clk 0:02:32.5]} 18... O-O-O {[%clk 0:02:23.5]} 19. a4 {[%clk 0:02:18.7]}
19... b4 {[%clk 0:02:22.6]} 20. Na2 {[%clk 0:02:19.2]} 20... Kb8 {[%clk
0:02:08.8]} 21. c3 {[%clk 0:02:18.5]} 21... b3 {[%clk 0:02:06.3]} 22. Nc1 {[%clk
0:02:18.3]} 22... Qb6 {[%clk 0:02:03.6]} 23. a5 {[%clk 0:02:18.5]} 23... Qxa5
{[%clk 0:01:45.5]} 24. Nxb3 {[%clk 0:02:18.1]} 24... Qb6 {[%clk 0:01:46.1]} 25.
Nxc5 {[%clk 0:02:18.3]} 25... Qxc5 {[%clk 0:01:46.8]} 26. Rd4 {[%clk 0:02:18.7]}
26... Nc6 {[%clk 0:01:39.7]} 27. Rdd1 {[%clk 0:02:12.7]} 27... e5 {[%clk
0:01:33.6]} 28. Be3 {[%clk 0:02:12.3]} 28... Qb5 {[%clk 0:01:33.5]} 29. Qc2
{[%clk 0:02:07.9]} 29... Ne7 {[%clk 0:01:23.6]} 30. Rd2 {[%clk 0:02:03.4]} 30...
Qc6 {[%clk 0:01:09.6]} 31. Rfd1 {[%clk 0:02:02.3]} 31... f5 {[%clk 0:01:08.2]}
32. Qb3 {[%clk 0:01:58.3]} 32... fxe4 {[%clk 0:00:38.7]} 33. Qe6 {[%clk
0:01:57.5]} 33... Nc8 {[%clk 0:00:22.8]} 34. Qg6 {[%clk 0:01:56.2]} 34... Rd7
{[%clk 0:00:12.5]} 35. Bh3 {[%clk 0:01:47.7]} 35... Rdd8 {[%clk 0:00:08.5]} 36.
Bxc8 {[%clk 0:01:45.8]} 36... Rxc8 {[%clk 0:00:06.8]} 37. Rxd6 {[%clk
0:01:46.1]} 37... Qb5 {[%clk 0:00:06.8]} 38. Rb6 {[%clk 0:01:43.9]} 38... Qe2
{[%clk 0:00:06.1]} 39. Rxb7+ {[%clk 0:01:44.4]} 39... Kxb7 {[%clk 0:00:05.6]}
40. Qb6+ {[%clk 0:01:44.9]} 1-0

[Event "Late-Titled-Tuesday-Blitz-July-09-2024"]
[Site "Chess.com"]
[Date "2024.07.09"]
[Round "3"]
[White "artin10862"]
[Black "MusicCityMaster"]
[Result "1-0"]
[WhiteElo "2949"]
[BlackElo "2498"]
[TimeControl "180+1"]
[EndTime "14:27:02 PDT"]
[Termination "artin10862 won by resignation"]

1. e4 {[%clk 0:03:00.9]} 1... e6 {[%clk 0:02:59.6]} 2. d4 {[%clk 0:02:48.3]}
2... d5 {[%clk 0:03:00.5]} 3. exd5 {[%clk 0:02:48.8]} 3... exd5 {[%clk
0:03:00.5]} 4. Bd3 {[%clk 0:02:49.3]} 4... Nc6 {[%clk 0:03:00.5]} 5. c3 {[%clk
0:02:48.9]} 5... Bd6 {[%clk 0:03:01.2]} 6. Qf3 {[%clk 0:02:31.4]} 6... Be6
{[%clk 0:02:49.4]} 7. Bf4 {[%clk 0:02:30.5]} 7... Nf6 {[%clk 0:02:45.2]} 8. Nd2
{[%clk 0:02:27.9]} 8... Qe7 {[%clk 0:02:33.8]} 9. Bxd6 {[%clk 0:02:23.4]} 9...
Qxd6 {[%clk 0:02:33.7]} 10. h3 {[%clk 0:02:21.7]} 10... O-O-O {[%clk 0:02:31.9]}
11. Ne2 {[%clk 0:02:21.5]} 11... Kb8 {[%clk 0:02:31.9]} 12. a4 {[%clk
0:02:11.8]} 12... Rde8 {[%clk 0:02:28.7]} 13. a5 {[%clk 0:02:09.2]} 13... Bc8
{[%clk 0:02:20]} 14. b4 {[%clk 0:02:04.9]} 14... g5 {[%clk 0:02:15.4]} 15. Nb3
{[%clk 0:01:56]} 15... g4 {[%clk 0:02:01.3]} 16. Qg3 {[%clk 0:01:44.9]} 16...
Qxg3 {[%clk 0:01:58.9]} 17. fxg3 {[%clk 0:01:44.8]} 17... Re3 {[%clk 0:01:52.3]}
18. Kd2 {[%clk 0:01:44.2]} 18... Rhe8 {[%clk 0:01:51.5]} 19. Raf1 {[%clk
0:01:43.7]} 19... Nh5 {[%clk 0:01:28.8]} 20. hxg4 {[%clk 0:01:42.2]} 20... Nxg3
{[%clk 0:01:26.6]} 21. Nxg3 {[%clk 0:01:42.2]} 21... Rxg3 {[%clk 0:01:27.1]} 22.
Rf2 {[%clk 0:01:42.9]} 22... Ree3 {[%clk 0:01:16.5]} 23. Nc1 {[%clk 0:01:42.5]}
23... Bxg4 {[%clk 0:01:11.9]} 24. Rxh7 {[%clk 0:01:41.8]} 24... a6 {[%clk
0:00:50]} 25. Rhxf7 {[%clk 0:01:41.3]} 25... Bh5 {[%clk 0:00:42.6]} 26. R7f5
{[%clk 0:01:16.8]} 26... Bg4 {[%clk 0:00:26.8]} 27. Rg5 {[%clk 0:01:14.7]} 27...
Re8 {[%clk 0:00:20.8]} 28. Ne2 {[%clk 0:01:04.3]} 28... Ka7 {[%clk 0:00:17.1]}
29. Nxg3 {[%clk 0:01:03.8]} 1-0

[Event "Late-Titled-Tuesday-Blitz-July-09-2024"]
[Site "Chess.com"]
[Date "2024.07.09"]
[Round "3"]
[White "Adar_07"]
[Black "Caterpiller35"]
[Result "1-0"]
[WhiteElo "2740"]
[BlackElo "2466"]
[TimeControl "180+1"]
[EndTime "14:27:02 PDT"]
[Termination "Adar_07 won by resignation"]

1. e4 {[%clk 0:03:00.9]} 1... c5 {[%clk 0:02:59.9]} 2. Nf3 {[%clk 0:03:00.5]}
2... Nc6 {[%clk 0:03:00.2]} 3. d4 {[%clk 0:03:00.8]} 3... cxd4 {[%clk
0:03:01.1]} 4. Nxd4 {[%clk 0:03:01.7]} 4... e5 {[%clk 0:03:01.7]} 5. Nb5 {[%clk
0:03:01.4]} 5... d6 {[%clk 0:03:01.9]} 6. N5c3 {[%clk 0:03:01.7]} 6... f5 {[%clk
0:02:59.8]} 7. Nd5 {[%clk 0:02:55.7]} 7... f4 {[%clk 0:02:51.3]} 8. g3 {[%clk
0:02:52]} 8... Nf6 {[%clk 0:02:49.6]} 9. Nbc3 {[%clk 0:02:49.2]} 9... Be7 {[%clk
0:02:25.4]} 10. gxf4 {[%clk 0:02:46.4]} 10... exf4 {[%clk 0:02:26.3]} 11. Bc4
{[%clk 0:02:34.4]} 11... Ne5 {[%clk 0:02:26.1]} 12. Bb5+ {[%clk 0:02:32.7]}
12... Bd7 {[%clk 0:02:14]} 13. Bxf4 {[%clk 0:02:29]} 13... Nxd5 {[%clk
0:01:56.8]} 14. Qxd5 {[%clk 0:02:21.1]} 14... Bxb5 {[%clk 0:01:33.1]} 15. Qxb5+
{[%clk 0:02:22]} 15... Nc6 {[%clk 0:01:21.4]} 16. Qxb7 {[%clk 0:02:20.1]} 16...
Rc8 {[%clk 0:01:21.5]} 17. Qb3 {[%clk 0:02:17.7]} 17... Rf8 {[%clk 0:01:12.9]}
18. Be3 {[%clk 0:02:16.4]} 18... Bf6 {[%clk 0:01:07.6]} 19. O-O-O {[%clk
0:02:13.9]} 19... Qa5 {[%clk 0:01:03.7]} 20. Rxd6 {[%clk 0:02:04.8]} 20... Bxc3
{[%clk 0:01:00.7]} 21. bxc3 {[%clk 0:02:00.3]} 21... Ne7 {[%clk 0:00:42.5]} 22.
Rhd1 {[%clk 0:01:56.3]} 22... Rf6 {[%clk 0:00:33]} 23. Rxf6 {[%clk 0:01:51.7]}
23... gxf6 {[%clk 0:00:33.9]} 24. Bd4 {[%clk 0:01:48.1]} 24... Qg5+ {[%clk
0:00:33.2]} 25. Kb1 {[%clk 0:01:44.7]} 25... Qf4 {[%clk 0:00:33]} 26. Ka1 {[%clk
0:01:42.3]} 26... Rb8 {[%clk 0:00:24.8]} 27. Qe6 {[%clk 0:01:41.8]} 27... Qf3
{[%clk 0:00:16.3]} 28. Rg1 {[%clk 0:01:41.5]} 28... Kf8 {[%clk 0:00:12.7]} 29.
Bxf6 {[%clk 0:01:39.9]} 29... Ng6 {[%clk 0:00:11.1]} 30. Bd4 {[%clk 0:01:36.4]}
30... Re8 {[%clk 0:00:08.7]} 31. Qd6+ {[%clk 0:01:34.2]} 31... Kg8 {[%clk
0:00:08]} 32. Qd7 {[%clk 0:01:29.5]} 32... Re7 {[%clk 0:00:06.7]} 33. Qxe7
{[%clk 0:01:28.7]} 1-0

[Event "Late-Titled-Tuesday-Blitz-July-09-2024"]
[Site "Chess.com"]
[Date "2024.07.09"]
[Round "3"]
[White "jcmesafischer"]
[Black "Chigorinetz"]
[Result "0-1"]
[WhiteElo "2359"]
[BlackElo "2591"]
[TimeControl "180+1"]
[EndTime "14:27:03 PDT"]
[Termination "Chigorinetz won by resignation"]

1. e4 {[%clk 0:03:00.9]} 1... c5 {[%clk 0:02:50.4]} 2. Nf3 {[%clk 0:02:53.5]}
2... Nc6 {[%clk 0:02:49.9]} 3. Bb5 {[%clk 0:02:51.4]} 3... g5 {[%clk 0:02:49.2]}
4. Nxg5 {[%clk 0:02:43.9]} 4... Nf6 {[%clk 0:02:48.6]} 5. Nc3 {[%clk 0:02:40.6]}
5... Rg8 {[%clk 0:02:47.9]} 6. d3 {[%clk 0:02:36.3]} 6... h6 {[%clk 0:02:47.8]}
7. h4 {[%clk 0:02:33.4]} 7... Nd4 {[%clk 0:02:38.7]} 8. Bc4 {[%clk 0:02:31.7]}
8... e6 {[%clk 0:02:38.3]} 9. g3 {[%clk 0:02:28.7]} 9... d5 {[%clk 0:02:34.6]}
10. exd5 {[%clk 0:02:19.6]} 10... exd5 {[%clk 0:02:33.9]} 11. Nxf7 {[%clk
0:02:08]} 11... Qe7+ {[%clk 0:02:23.2]} 12. Be3 {[%clk 0:01:59.9]} 12... Bg4
{[%clk 0:02:18]} 13. Qc1 {[%clk 0:01:35]} 13... dxc4 {[%clk 0:02:17]} 14. dxc4
{[%clk 0:01:23.1]} 14... Kxf7 {[%clk 0:02:12.8]} 15. Kf1 {[%clk 0:01:16.4]}
15... Re8 {[%clk 0:02:02.5]} 16. Bxh6 {[%clk 0:01:13.7]} 16... Be2+ {[%clk
0:01:54.3]} 17. Kg1 {[%clk 0:01:09.7]} 17... Bxc4 {[%clk 0:01:41]} 18. Bg5
{[%clk 0:01:10]} 18... Ne2+ {[%clk 0:01:30.6]} 19. Nxe2 {[%clk 0:01:09.2]} 19...
Qxe2 {[%clk 0:01:31.5]} 20. Qf4 {[%clk 0:01:09.1]} 20... Bg7 {[%clk 0:01:20.2]}
21. Kh2 {[%clk 0:01:08.9]} 21... Bd5 {[%clk 0:01:16.9]} 22. Rad1 {[%clk
0:00:59.4]} 22... Re4 {[%clk 0:01:08.4]} 23. Qf5 {[%clk 0:00:52.3]} 23... Re5
{[%clk 0:01:04.9]} 24. Qf4 {[%clk 0:00:39.9]} 24... Rxg5 {[%clk 0:01:04.1]} 25.
Rhe1 {[%clk 0:00:30.3]} 25... Qf3 {[%clk 0:00:57.6]} 26. Qxf3 {[%clk 0:00:19.6]}
26... Bxf3 {[%clk 0:00:56.9]} 27. hxg5 {[%clk 0:00:20.2]} 27... Rh8+ {[%clk
0:00:56.7]} 0-1

[Event "Late-Titled-Tuesday-Blitz-July-09-2024"]
[Site "Chess.com"]
[Date "2024.07.09"]
[Round "3"]
[White "ninguno46"]
[Black "le-castor-faineant"]
[Result "1-0"]
[WhiteElo "2577"]
[BlackElo "2345"]
[TimeControl "180+1"]
[EndTime "14:27:04 PDT"]
[Termination "ninguno46 won on time"]

1. Nf3 {[%clk 0:03:00.9]} 1... Nf6 {[%clk 0:02:59.9]} 2. c4 {[%clk 0:03:00.3]}
2... g6 {[%clk 0:02:59.5]} 3. Nc3 {[%clk 0:02:59.9]} 3... Bg7 {[%clk 0:02:59.9]}
4. e4 {[%clk 0:02:59.9]} 4... d6 {[%clk 0:03:00.3]} 5. d4 {[%clk 0:03:00.2]}
5... O-O {[%clk 0:03:00.6]} 6. Be2 {[%clk 0:03:00.6]} 6... Nbd7 {[%clk
0:03:01.1]} 7. O-O {[%clk 0:03:00.7]} 7... e5 {[%clk 0:03:01.4]} 8. Qc2 {[%clk
0:02:59]} 8... a5 {[%clk 0:03:00.5]} 9. Rd1 {[%clk 0:02:59.3]} 9... exd4 {[%clk
0:03:00.4]} 10. Nxd4 {[%clk 0:02:58.9]} 10... Nc5 {[%clk 0:03:01]} 11. Ndb5
{[%clk 0:02:59.1]} 11... Re8 {[%clk 0:03:00.9]} 12. f3 {[%clk 0:02:59.4]} 12...
Bd7 {[%clk 0:02:59.1]} 13. Bg5 {[%clk 0:02:56.6]} 13... h6 {[%clk 0:02:58.5]}
14. Bh4 {[%clk 0:02:55.1]} 14... g5 {[%clk 0:02:58.1]} 15. Bf2 {[%clk
0:02:55.1]} 15... Nh5 {[%clk 0:02:53]} 16. Bf1 {[%clk 0:02:51.5]} 16... Nf4
{[%clk 0:02:49.4]} 17. Qd2 {[%clk 0:02:50.3]} 17... b6 {[%clk 0:02:41.2]} 18.
Rac1 {[%clk 0:02:43.1]} 18... Be5 {[%clk 0:02:13.5]} 19. Be3 {[%clk 0:02:08]}
19... Rc8 {[%clk 0:01:54.3]} 20. g3 {[%clk 0:02:07]} 20... Nfe6 {[%clk
0:01:39.5]} 21. Kh1 {[%clk 0:01:48.7]} 21... Qf6 {[%clk 0:01:36.9]} 22. Bg2
{[%clk 0:01:47.6]} 22... Bxb5 {[%clk 0:01:16.4]} 23. cxb5 {[%clk 0:01:46.2]}
23... h5 {[%clk 0:01:02.2]} 24. Nd5 {[%clk 0:01:43.9]} 24... Qg7 {[%clk
0:00:57.3]} 25. b3 {[%clk 0:01:42]} 25... h4 {[%clk 0:00:52.8]} 26. f4 {[%clk
0:01:41.5]} 26... gxf4 {[%clk 0:00:48.8]} 27. gxf4 {[%clk 0:01:41.3]} 27... Bb2
{[%clk 0:00:09.1]} 28. Rc2 {[%clk 0:01:40.1]} 28... Bf6 {[%clk 0:00:09.2]} 29.
Bf3 {[%clk 0:01:39.3]} 29... Kf8 {[%clk 0:00:06.6]} 30. Rg1 {[%clk 0:01:32.9]}
30... Qh8 {[%clk 0:00:06.9]} 31. f5 {[%clk 0:01:25.6]} 31... Ng7 {[%clk
0:00:01.6]} 32. Nxf6 {[%clk 0:01:23.9]} 32... Nxe4 {[%clk 0:00:01.3]} 33. Bxe4
{[%clk 0:01:21.5]} 1-0

[Event "Late-Titled-Tuesday-Blitz-July-09-2024"]
[Site "Chess.com"]
[Date "2024.07.09"]
[Round "3"]
[White "ilya2700"]
[Black "KevinGeorgeMicheal"]
[Result "0-1"]
[WhiteElo "2245"]
[BlackElo "2546"]
[TimeControl "180+1"]
[EndTime "14:27:04 PDT"]
[Termination "KevinGeorgeMicheal won on time"]

1. e4 {[%clk 0:03:00]} 1... c6 {[%clk 0:02:59]} 2. d4 {[%clk 0:02:59.9]} 2... d5
{[%clk 0:02:59.2]} 3. exd5 {[%clk 0:03:00.8]} 3... cxd5 {[%clk 0:02:59.2]} 4.
Bd3 {[%clk 0:03:01.3]} 4... Nf6 {[%clk 0:02:58.5]} 5. Bf4 {[%clk 0:02:58.4]}
5... Nc6 {[%clk 0:02:58.2]} 6. c3 {[%clk 0:02:58.4]} 6... g6 {[%clk 0:02:56.8]}
7. Nf3 {[%clk 0:02:58.2]} 7... Bg7 {[%clk 0:02:56.8]} 8. O-O {[%clk 0:02:58.8]}
8... O-O {[%clk 0:02:57.3]} 9. Re1 {[%clk 0:02:59.3]} 9... Bf5 {[%clk
0:02:40.8]} 10. Bxf5 {[%clk 0:02:56.8]} 10... gxf5 {[%clk 0:02:40.9]} 11. Ne5
{[%clk 0:02:56.6]} 11... e6 {[%clk 0:02:40.5]} 12. Nd2 {[%clk 0:02:56]} 12...
Nxe5 {[%clk 0:02:37.9]} 13. Bxe5 {[%clk 0:02:55.1]} 13... Nd7 {[%clk 0:02:37.3]}
14. Bxg7 {[%clk 0:02:50.3]} 14... Kxg7 {[%clk 0:02:37.3]} 15. Re3 {[%clk
0:02:50.4]} 15... Rg8 {[%clk 0:02:35.3]} 16. Rh3 {[%clk 0:02:46.6]} 16... Kh8
{[%clk 0:02:26.1]} 17. Nf3 {[%clk 0:02:42.5]} 17... Qf6 {[%clk 0:02:19.8]} 18.
Qd2 {[%clk 0:02:38.5]} 18... Rg4 {[%clk 0:02:13.6]} 19. Re1 {[%clk 0:02:34.4]}
19... Rag8 {[%clk 0:02:10.7]} 20. g3 {[%clk 0:02:33.1]} 20... f4 {[%clk
0:02:06.6]} 21. Ne5 {[%clk 0:02:19.2]} 21... Nxe5 {[%clk 0:02:00.4]} 22. dxe5
{[%clk 0:02:20.1]} 22... Qf5 {[%clk 0:01:56.2]} 23. Kg2 {[%clk 0:02:02.9]} 23...
f3+ {[%clk 0:01:33.4]} 24. Kg1 {[%clk 0:01:57.5]} 24... Re4 {[%clk 0:01:24.3]}
25. Rh6 {[%clk 0:00:20.4]} 25... Qg5 {[%clk 0:01:18.3]} 0-1

[Event "Late-Titled-Tuesday-Blitz-July-09-2024"]
[Site "Chess.com"]
[Date "2024.07.09"]
[Round "3"]
[White "DanielDardha2005"]
[Black "Meri-Arabidze"]
[Result "1-0"]
[WhiteElo "2907"]
[BlackElo "2686"]
[TimeControl "180+1"]
[EndTime "14:27:11 PDT"]
[Termination "DanielDardha2005 won by checkmate"]

1. e4 {[%clk 0:03:00.9]} 1... c5 {[%clk 0:02:56.6]} 2. Nf3 {[%clk 0:03:00.5]}
2... e6 {[%clk 0:02:57.3]} 3. Bd3 {[%clk 0:02:58.5]} 3... Nc6 {[%clk 0:02:55.9]}
4. O-O {[%clk 0:02:58]} 4... Nf6 {[%clk 0:02:52.4]} 5. Re1 {[%clk 0:02:56.2]}
5... Qc7 {[%clk 0:02:51]} 6. c3 {[%clk 0:02:47.8]} 6... d5 {[%clk 0:02:50.8]} 7.
exd5 {[%clk 0:02:46.8]} 7... Nxd5 {[%clk 0:02:51.7]} 8. Be4 {[%clk 0:02:42.3]}
8... Be7 {[%clk 0:02:50.1]} 9. d4 {[%clk 0:02:41.7]} 9... cxd4 {[%clk
0:02:42.4]} 10. Nxd4 {[%clk 0:02:38.1]} 10... Nxd4 {[%clk 0:02:36.1]} 11. Qxd4
{[%clk 0:02:39]} 11... O-O {[%clk 0:02:36.4]} 12. Bxd5 {[%clk 0:02:32.7]} 12...
exd5 {[%clk 0:02:32.3]} 13. Qxd5 {[%clk 0:02:32.4]} 13... Be6 {[%clk 0:02:29.4]}
14. Qf3 {[%clk 0:02:32]} 14... Bd6 {[%clk 0:02:22]} 15. Qh5 {[%clk 0:02:16.8]}
15... Rae8 {[%clk 0:02:14.2]} 16. Be3 {[%clk 0:02:15.1]} 16... f5 {[%clk
0:02:09.1]} 17. Nd2 {[%clk 0:02:12]} 17... Bd5 {[%clk 0:01:42.9]} 18. Nf3 {[%clk
0:02:06]} 18... g6 {[%clk 0:01:40.6]} 19. Qh3 {[%clk 0:02:03.2]} 19... a6 {[%clk
0:01:31.9]} 20. Bd4 {[%clk 0:01:55.3]} 20... Bxf3 {[%clk 0:01:16.1]} 21. Qxf3
{[%clk 0:01:48.6]} 21... Bxh2+ {[%clk 0:01:15.6]} 22. Kh1 {[%clk 0:01:48.5]}
22... Re4 {[%clk 0:00:31.1]} 23. g3 {[%clk 0:01:38.3]} 23... Qc6 {[%clk
0:00:31.3]} 24. Rxe4 {[%clk 0:01:30.5]} 24... fxe4 {[%clk 0:00:29.6]} 25. Qg2
{[%clk 0:01:30.8]} 25... Bxg3 {[%clk 0:00:17.3]} 26. fxg3 {[%clk 0:01:31.7]}
26... Rf3 {[%clk 0:00:16.3]} 27. Rf1 {[%clk 0:01:25.2]} 27... g5 {[%clk
0:00:15.7]} 28. Rxf3 {[%clk 0:01:16.2]} 28... exf3 {[%clk 0:00:16.6]} 29. Qf2
{[%clk 0:01:16.5]} 29... g4 {[%clk 0:00:17]} 30. Kg1 {[%clk 0:01:13.7]} 30...
Qc4 {[%clk 0:00:12.7]} 31. Qe3 {[%clk 0:01:12]} 31... Qd5 {[%clk 0:00:01.1]} 32.
Qe8# {[%clk 0:01:10.6]} 1-0